bitfinex/quotes_BTCUSD_20240731
["timestamp","ask_amount","ask_price","bid_price","bid_amount"]
[1722412082592,0.03944481,66443.0,66440.0,0.150511]
[1722412082837,0.03944481,66442.0,66440.0,0.150511]
[1722412083062,0.03944481,66441.0,66440.0,0.150511]
[1722412083749,0.03944481,66443.0,66440.0,0.150511]
[1722412083987,0.03944481,66443.0,66439.0,0.1411]
[1722412083988,0.03944481,66442.0,66439.0,0.0809]
[1722412084210,0.03944481,66442.0,66436.0,0.000913]
[1722412084211,0.215716,66438.0,66436.0,0.000913]
[1722412084439,0.18996281,66437.0,66436.0,0.000913]
[1722412084861,0.49085089,66437.0,66436.0,0.000913]
[1722412085951,0.49085089,66437.0,66436.0,0.002913]
[1722412088243,0.451555,66437.0,66436.0,0.002913]
[1722412088445,0.49118783,66437.0,66436.0,0.000913]
[1722412088599,0.49118783,66437.0,66436.0,0.002913]
[1722412089998,0.49118783,66437.0,66436.0,0.000913]
[1722412090438,0.19015083,66437.0,66436.0,0.000913]
[1722412090640,0.03963283,66437.0,66436.0,0.081013]
[1722412091581,0.150517,66438.0,66436.0,0.081013]
[1722412091952,0.03971949,66437.0,66436.0,0.081013]
[1722412098244,0.03974134,66437.0,66436.0,0.081013]
[1722412101143,0.03974134,66437.0,66436.0,0.599174]
[1722412101356,0.03974134,66437.0,66436.0,0.900215]
[1722412101562,0.15248428,66440.0,66437.0,0.1437]
[1722412101771,0.15248428,66440.0,66439.0,0.595242]
[1722412101982,0.19175027,66440.0,66439.0,0.595242]
[1722412102615,0.03926599,66440.0,66439.0,0.595242]
[1722412102830,0.03926599,66443.0,66441.0,0.0803]
[1722412103039,0.03925533,66442.0,66441.0,0.230809]
[1722412104895,0.03931215,66442.0,66441.0,0.230809]
[1722412105102,0.03931215,66442.0,66441.0,0.0803]
[1722412105740,0.03931215,66443.0,66441.0,0.0803]
[1722412106204,0.07534716,66442.0,66441.0,0.0803]
[1722412106409,0.11465931,66442.0,66441.0,0.0803]
[1722412108032,0.11448717,66442.0,66441.0,0.0803]
[1722412108226,0.07534716,66442.0,66441.0,0.0803]
[1722412108908,0.07534716,66442.0,66441.0,0.230809]
[1722412109796,0.07534716,66442.0,66441.0,0.0803]
[1722412110432,0.11452139,66442.0,66441.0,0.0803]
[1722412111815,0.03917423,66442.0,66441.0,0.230809]
[1722412112019,0.00083,66444.0,66443.0,0.0803]
[1722412112259,0.00083,66444.0,66443.0,0.230804]
[1722412112463,0.04012404,66444.0,66443.0,0.230804]
[1722412113708,0.00083,66444.0,66443.0,0.230804]
[1722412113854,0.04018674,66444.0,66443.0,0.230804]
[1722412117343,0.0403291,66444.0,66443.0,0.230804]
[1722412117579,0.0403291,66444.0,66443.0,0.0803]
[1722412121148,0.04032118,66444.0,66443.0,0.0803]
[1722412124842,0.04036837,66444.0,66443.0,0.0803]
[1722412126182,0.04036837,66444.0,66443.0,0.893722]
[1722412127181,0.04036837,66444.0,66443.0,0.592713]
[1722412127846,0.04036837,66444.0,66443.0,0.291704]
[1722412128364,0.04036837,66444.0,66443.0,0.290704]
[1722412128598,0.0408847,66444.0,66443.0,0.290704]
[1722412131381,0.0408847,66444.0,66443.0,0.591713]
[1722412131602,0.0408847,66444.0,66443.0,0.290704]
[1722412132020,0.00083,66444.0,66443.0,0.290704]
[1722412132432,0.04062831,66444.0,66443.0,0.290704]
[1722412134222,0.04062831,66444.0,66443.0,0.591713]
[1722412135380,0.04083127,66444.0,66443.0,0.591713]
[1722412138095,0.04083127,66444.0,66443.0,0.290704]
[1722412138702,0.04051103,66444.0,66443.0,0.290704]
[1722412139473,0.04051103,66444.0,66443.0,0.591713]
[1722412141780,0.04051103,66444.0,66443.0,0.892722]
[1722412141992,0.04051103,66444.0,66443.0,0.591713]
[1722412142291,0.04060191,66444.0,66443.0,0.591713]
[1722412145457,0.00083,66444.0,66443.0,0.591713]
[1722412146073,0.04064989,66444.0,66443.0,0.591713]
[1722412148933,0.04067225,66444.0,66443.0,0.591713]
[1722412149746,0.04067225,66444.0,66443.0,0.892722]
[1722412151243,0.04067225,66444.0,66443.0,1.193731]
[1722412151443,0.19324346,66444.0,66443.0,1.193731]
[1722412151713,0.04067225,66444.0,66443.0,1.193731]
[1722412152051,0.04067225,66444.0,66443.0,1.280031]
[1722412152350,0.04049457,66444.0,66443.0,1.280031]
[1722412153773,0.04049457,66444.0,66443.0,1.193731]
[1722412154232,0.04049457,66444.0,66443.0,1.280031]
[1722412154432,0.04049457,66444.0,66443.0,1.193731]
[1722412155599,0.04042929,66444.0,66443.0,1.193731]
[1722412156019,0.04042929,66444.0,66443.0,1.280031]
[1722412156647,0.04039309,66444.0,66443.0,1.280031]
[1722412158249,0.04039309,66444.0,66443.0,1.28899997]
[1722412159068,0.00083,66444.0,66443.0,1.28899997]
[1722412159622,0.04041238,66444.0,66443.0,1.28899997]
[1722412160319,0.04042757,66444.0,66443.0,1.28899997]
[1722412162535,0.00083,66444.0,66443.0,1.28899997]
[1722412162737,0.04045281,66444.0,66443.0,1.28899997]
[1722412169420,0.04044972,66444.0,66443.0,1.28899997]
[1722412170362,0.00083,66444.0,66443.0,1.28899997]
[1722412171175,0.00083,66444.0,66443.0,1.28991297]
[1722412172351,0.1364319,66444.0,66443.0,1.28991297]
[1722412173588,0.00083,66444.0,66443.0,1.28991297]
[1722412174196,0.00083,66444.0,66443.0,2.17456401]
[1722412174457,1.0,66446.0,66445.0,0.032]
[1722412174632,1.0,66446.0,66445.0,0.99984211]
[1722412174840,0.57664218,66446.0,66445.0,1.29971471]
[1722412175107,0.57664218,66446.0,66445.0,2.20271471]
[1722412175322,0.57657575,66446.0,66445.0,2.20271471]
[1722412176581,0.57657575,66446.0,66445.0,2.50371471]
[1722412177217,0.57657575,66446.0,66445.0,2.51771471]
[1722412177424,0.52680817,66446.0,66445.0,2.51771471]
[1722412177635,0.52680817,66446.0,66445.0,2.51769192]
[1722412177838,0.52680817,66446.0,66445.0,2.50369192]
[1722412177986,0.52680817,66446.0,66445.0,2.51769192]
[1722412178803,0.52680817,66446.0,66445.0,2.53169192]
[1722412180809,0.52680817,66446.0,66445.0,2.61799735]
[1722412181423,0.00083,66452.0,66451.0,0.322886]
[1722412181632,0.00083,66452.0,66451.0,1.15346504]
[1722412181841,0.00083,66452.0,66451.0,1.75541104]
[1722412182086,0.00083,66452.0,66451.0,1.84171104]
[1722412182290,0.00083,66452.0,66451.0,1.86171104]
[1722412182904,0.00083,66452.0,66451.0,1.87571104]
[1722412183540,0.00083,66452.0,66451.0,1.89171104]
[1722412188143,0.00083,66452.0,66451.0,1.89774104]
[1722412188344,0.00083,66454.0,66453.0,0.032]
[1722412188557,0.00083,66454.0,66453.0,1.68367984]
[1722412188759,0.00083,66454.0,66453.0,2.08464384]
[1722412189443,0.00083,66454.0,66453.0,2.11264384]
[1722412189868,0.00083,66454.0,66453.0,2.09864384]
[1722412190489,0.00083,66454.0,66453.0,2.08464384]
[1722412191240,0.00083,66454.0,66453.0,2.09864384]
[1722412191562,0.00084,66456.0,66455.0,1.833052]
[1722412191764,0.00084,66456.0,66455.0,2.16998504]
[1722412192298,0.00084,66456.0,66455.0,1.76073004]
[1722412192503,0.00084,66456.0,66455.0,1.84703004]
[1722412192700,0.00084,66456.0,66455.0,1.86103004]
[1722412192909,0.00084,66456.0,66455.0,1.88103004]
[1722412193449,0.00084,66456.0,66455.0,1.88303004]
[1722412193875,0.00084,66456.0,66455.0,1.89703004]
[1722412194602,0.00084,66456.0,66455.0,2.19798504]
[1722412195009,0.00084,66456.0,66455.0,2.3230326]
[1722412197490,0.00084,66456.0,66455.0,2.32303209]
[1722412197860,0.00084,66456.0,66455.0,2.30903209]
[1722412198325,0.00084,66456.0,66455.0,2.32303209]
[1722412199155,0.13834716,66476.0,66475.0,1.053024]
[1722412199358,0.1122,66478.0,66477.0,0.451282]
[1722412199359,0.1768,66478.0,66477.0,0.451282]
[1722412199557,0.1768,66478.0,66477.0,1.052992]
[1722412199961,0.1096,66478.0,66477.0,1.052992]
[1722412201048,0.045,66478.0,66477.0,1.052992]
[1722412201246,0.045,66478.0,66477.0,1.057992]
[1722412201469,0.045,66478.0,66477.0,1.062992]
[1722412201880,0.1064,66478.0,66477.0,0.762137]
[1722412202083,0.2599,66478.0,66477.0,0.762137]
[1722412202544,0.2599,66478.0,66477.0,0.461282]
[1722412202931,0.29919098,66478.0,66477.0,0.461282]
[1722412203120,0.36662182,66478.0,66477.0,0.461282]
[1722412203432,0.36662182,66478.0,66477.0,0.456282]
[1722412203636,0.36662182,66478.0,66477.0,0.457282]
[1722412203784,0.36662182,66478.0,66477.0,0.452282]
[1722412204182,0.36682008,66478.0,66477.0,0.451282]
[1722412204389,0.1736,66478.0,66477.0,0.752137]
[1722412204590,0.045,66478.0,66477.0,1.052992]
[1722412205400,0.045,66478.0,66477.0,1.053992]
[1722412205599,0.04583,66478.0,66477.0,0.753137]
[1722412205799,0.30107643,66478.0,66477.0,0.001]
[1722412206017,0.23887643,66478.0,66477.0,0.150427]
[1722412206223,0.30107643,66478.0,66477.0,0.150427]
[1722412206425,0.30107643,66478.0,66477.0,0.456282]
[1722412206620,0.30107643,66478.0,66477.0,0.155427]
[1722412206875,0.30107643,66478.0,66477.0,0.150427]
[1722412207050,0.30107643,66478.0,66477.0,0.451282]
[1722412207276,0.30095035,66478.0,66477.0,0.452282]
[1722412207454,0.30095035,66478.0,66477.0,0.451282]
[1722412208115,0.21465035,66478.0,66477.0,0.451282]
[1722412208329,0.3046054,66478.0,66477.0,0.451282]
[1722412209289,0.32709416,66478.0,66477.0,0.451282]
[1722412209493,0.32709416,66478.0,66477.0,0.150427]
[1722412209700,0.32709416,66478.0,66477.0,0.451282]
[1722412210314,0.21465035,66478.0,66477.0,0.451282]
[1722412210527,0.17523,66478.0,66477.0,0.451282]
[1722412210778,0.21478342,66478.0,66477.0,0.451282]
[1722412212194,0.21478342,66478.0,66477.0,0.150427]
[1722412213083,0.21478342,66478.0,66466.0,0.38495525]
[1722412213084,0.0608,66477.0,66466.0,0.38495525]
[1722412213289,0.10675342,66476.0,66475.0,0.150432]
[1722412213494,0.17255342,66476.0,66475.0,0.150432]
[1722412213904,0.17270286,66476.0,66475.0,0.150432]
[1722412214110,0.17270287,66476.0,66473.0,0.300872]
[1722412214320,0.03970287,66475.0,66474.0,0.150433]
[1722412214523,0.04583,66478.0,66474.0,0.150433]
[1722412214524,0.04583,66478.0,66477.0,0.150427]
[1722412214728,0.0854912,66478.0,66477.0,0.838437]
[1722412215864,0.0854912,66478.0,66477.0,0.752137]
[1722412217015,0.0854912,66478.0,66477.0,0.760137]
[1722412217220,0.04583,66478.0,66477.0,1.058992]
[1722412217629,0.04583,66478.0,66477.0,1.064992]
[1722412218740,0.04583,66478.0,66477.0,0.764137]
[1722412220620,0.18123846,66478.0,66477.0,0.764137]
[1722412220829,0.04583,66478.0,66477.0,0.764137]
[1722412221238,0.18123846,66478.0,66477.0,0.764137]
[1722412223126,0.18123846,66478.0,66477.0,1.064992]
[1722412223326,0.18123846,66478.0,66477.0,1.231592]
[1722412223531,0.18123846,66478.0,66477.0,1.293992]
[1722412223957,0.18124309,66478.0,66477.0,0.993137]
[1722412224929,0.13624309,66478.0,66477.0,0.993137]
[1722412225134,0.13624309,66478.0,66477.0,0.844437]
[1722412225334,0.13624309,66478.0,66477.0,0.764137]
[1722412226328,0.17622115,66478.0,66477.0,0.764137]
[1722412226551,0.17622115,66478.0,66477.0,0.758137]
[1722412227003,0.13624309,66478.0,66477.0,0.757137]
[1722412227176,0.00083,66478.0,66477.0,1.231292]
[1722412227445,0.00083,66478.0,66477.0,0.925437]
[1722412227644,0.00083,66478.0,66477.0,1.226292]
[1722412227846,0.00083,66478.0,66477.0,0.928437]
[1722412228009,0.00083,66478.0,66477.0,0.925437]
[1722412228219,0.00083,66478.0,66477.0,0.920437]
[1722412228467,0.00083,66478.0,66477.0,1.224292]
[1722412228631,0.00083,66478.0,66477.0,1.230292]
[1722412228840,0.00083,66478.0,66477.0,1.227292]
[1722412229042,0.00083,66478.0,66477.0,1.290292]
[1722412229235,0.00083,66478.0,66477.0,1.296292]
[1722412229724,0.00083,66478.0,66477.0,1.290292]
[1722412229951,0.00083,66478.0,66477.0,1.384292]
[1722412230365,0.00083,66478.0,66477.0,1.402292]
[1722412230566,0.1136829,66478.0,66477.0,1.402292]
[1722412230821,0.00083,66478.0,66477.0,1.402292]
[1722412231190,0.1136829,66478.0,66477.0,1.402292]
[1722412231450,0.00083,66478.0,66477.0,1.402292]
[1722412231656,0.00083,66478.0,66477.0,1.396292]
[1722412231861,0.00083,66478.0,66477.0,1.407292]
[1722412233098,0.11366749,66478.0,66477.0,1.407292]
[1722412233910,0.00083,66478.0,66477.0,1.419292]
[1722412234118,0.00083,66478.0,66477.0,1.407292]
[1722412234342,0.09110687,66478.0,66477.0,1.88078004]
[1722412234555,0.00083,66478.0,66477.0,1.89078004]
[1722412234980,0.04596116,66478.0,66477.0,1.89078004]
[1722412235174,0.00083,66478.0,66477.0,1.89078004]
[1722412235327,0.04596116,66478.0,66477.0,1.89078004]
[1722412235528,0.00083,66478.0,66477.0,1.89078004]
[1722412235853,0.04596116,66478.0,66477.0,1.87978004]
[1722412236061,0.04596116,66478.0,66477.0,1.89378004]
[1722412236444,0.04596116,66478.0,66477.0,1.88178004]
[1722412236843,0.04596116,66478.0,66477.0,1.89578004]
[1722412237067,0.00083,66478.0,66477.0,1.87378004]
[1722412237240,0.04594817,66478.0,66477.0,1.87378004]
[1722412237669,0.04594817,66478.0,66477.0,1.89378004]
[1722412237868,0.00083,66478.0,66477.0,1.89378004]
[1722412238271,0.00083,66478.0,66477.0,1.89578004]
[1722412246350,0.00083,66478.0,66477.0,1.80948004]
[1722412246552,0.00083,66478.0,66477.0,1.89578004]
[1722412252294,0.00083,66478.0,66477.0,1.87378004]
[1722412252526,0.00083,66478.0,66477.0,1.99879909]
[1722412252727,0.00083,66478.0,66477.0,1.57292504]
[1722412253138,0.00083,66478.0,66477.0,1.48662504]
[1722412253506,0.00083,66478.0,66477.0,1.42362504]
[1722412253507,0.04590966,66478.0,66477.0,1.42362504]
[1722412253668,0.04591395,66478.0,66477.0,1.42362504]
[1722412254055,0.04591608,66478.0,66477.0,1.42362504]
[1722412254229,0.04591569,66478.0,66477.0,1.42362504]
[1722412254428,0.04591569,66478.0,66477.0,1.50992504]
[1722412254813,0.04591569,66478.0,66477.0,0.880137]
[1722412255020,0.09100138,66478.0,66477.0,0.880137]
[1722412255423,0.00083,66478.0,66477.0,0.880137]
[1722412255586,0.00083,66478.0,66477.0,1.180992]
[1722412256797,0.11354423,66478.0,66477.0,1.267292]
[1722412257269,0.11358,66478.0,66477.0,1.267292]
[1722412259511,0.00083,66478.0,66477.0,1.267292]
[1722412260078,0.00083,66478.0,66477.0,1.343392]
[1722412260820,0.00083,66478.0,66477.0,1.257092]
[1722412261025,0.00083,66478.0,66477.0,0.880137]
[1722412266243,0.00083,66478.0,66477.0,1.022937]
[1722412266453,0.00083,66478.0,66477.0,1.323792]
[1722412269350,0.11365607,66478.0,66477.0,1.323792]
[1722412270402,0.00083,66478.0,66477.0,1.323792]
[1722412270607,0.11365965,66478.0,66477.0,1.323792]
[1722412271698,0.00083,66478.0,66477.0,1.323792]
[1722412272262,0.11367149,66478.0,66477.0,1.48442504]
[1722412272468,0.11367091,66478.0,66477.0,1.48442504]
[1722412273745,0.11368113,66478.0,66477.0,1.48442504]
[1722412274002,0.00083,66478.0,66477.0,1.48442504]
[1722412274774,0.00083,66478.0,66477.0,1.17357004]
[1722412275092,0.11368113,66478.0,66477.0,1.10957004]
[1722412275296,0.00083,66478.0,66477.0,1.10957004]
[1722412275652,0.00083,66478.0,66477.0,0.128]
[1722412275653,0.151255,66478.0,66477.0,0.128]
[1722412275877,0.151255,66478.0,66477.0,0.028]
[1722412275878,0.25079422,66478.0,66477.0,0.028]
[1722412276090,0.55164522,66478.0,66477.0,0.028]
[1722412276729,0.85249622,66478.0,66477.0,0.028]
[1722412276948,0.9194222,66478.0,66477.0,0.028]
[1722412277598,1.07175805,66478.0,66477.0,0.028]
[1722412277824,1.07175362,66478.0,66477.0,0.028]
[1722412278193,0.9194222,66478.0,66477.0,0.028]
[1722412278420,1.07175354,66478.0,66477.0,0.028]
[1722412278624,1.07172898,66478.0,66477.0,0.028]
[1722412279908,0.47002698,66478.0,66477.0,0.028]
[1722412280167,0.278455,66478.0,66477.0,0.028]
[1722412280349,0.6186782,66478.0,66477.0,0.028]
[1722412280589,0.3178272,66478.0,66477.0,0.028]
[1722412280746,0.2506272,66478.0,66477.0,0.028]
[1722412281302,0.5514782,66478.0,66477.0,0.028]
[1722412282064,0.0402022,66478.0,66477.0,0.028]
[1722412282266,0.00083,66478.0,66477.0,0.257527]
[1722412282440,0.00083,66478.0,66477.0,0.558382]
[1722412282826,0.00083,66478.0,66477.0,0.859237]
[1722412284061,0.00083,66478.0,66477.0,0.86834317]
[1722412285100,0.00083,66478.0,66477.0,0.56748817]
[1722412287179,0.00083,66478.0,66477.0,0.26663317]
[1722412287383,0.00083,66478.0,66477.0,0.56748817]
[1722412287791,0.00083,66478.0,66477.0,0.18753317]
[1722412289710,0.13614981,66478.0,66477.0,0.18753317]
[1722412290112,0.13616462,66478.0,66477.0,0.18753317]
[1722412290317,0.13616462,66478.0,66477.0,0.48838817]
[1722412290717,0.00083,66478.0,66477.0,0.78924317]
[1722412290943,0.00083,66478.0,66477.0,0.92924317]
[1722412291172,0.00083,66478.0,66477.0,0.62838817]
[1722412291593,0.00083,66478.0,66477.0,0.56788817]
[1722412291798,0.00083,66478.0,66477.0,0.26703317]
[1722412292568,0.13617858,66478.0,66477.0,0.26603317]
[1722412292788,0.00083,66478.0,66477.0,0.26603317]
[1722412293858,0.00083,66478.0,66477.0,0.56688817]
[1722412294066,0.13263,66478.0,66477.0,0.48738817]
[1722412294269,0.13263,66478.0,66477.0,0.027]
[1722412294270,1.22430803,66478.0,66477.0,0.027]
[1722412294485,1.35841958,66478.0,66477.0,0.027]
[1722412294700,1.432216,66478.0,66477.0,0.027]
[1722412294913,1.29810445,66478.0,66477.0,0.027]
[1722412295124,1.29810445,66478.0,66477.0,0.013]
[1722412295329,1.44873749,66478.0,66477.0,0.013]
[1722412295537,1.44873749,66478.0,66477.0,0.014]
[1722412295754,0.150451,66467.0,66461.0,0.150463]
[1722412295956,0.13535662,66465.0,66462.0,0.1]
[1722412296169,0.13535662,66464.0,66462.0,0.1]
[1722412296570,0.13535662,66465.0,66462.0,0.1]
[1722412296786,0.216053,66466.0,66462.0,0.1]
[1722412297005,0.13533507,66465.0,66462.0,0.1]
[1722412297428,0.13533507,66465.0,66462.0,0.250461]
[1722412297833,0.13533507,66465.0,66462.0,0.264461]
[1722412298589,0.20093507,66466.0,66462.0,0.264461]
[1722412299753,0.20093507,66466.0,66462.0,0.114]
[1722412300058,0.35134515,66466.0,66462.0,0.114]
[1722412300680,0.13529115,66467.0,66462.0,0.1]
[1722412300886,0.13529115,66467.0,66464.0,0.150456]
[1722412301095,0.13529115,66467.0,66463.0,0.229859]
[1722412301726,0.13529115,66467.0,66463.0,0.0794]
[1722412301913,0.13529115,66467.0,66463.0,0.229858]
[1722412302151,0.13529115,66467.0,66464.0,0.014]
[1722412302554,0.150449,66468.0,66463.0,0.229858]
[1722412302555,0.28574015,66468.0,66463.0,0.229858]
[1722412302798,0.13529115,66466.0,66463.0,0.229858]
[1722412302994,0.13529115,66468.0,66463.0,0.229859]
[1722412303222,0.28573915,66468.0,66463.0,0.229859]
[1722412303788,0.28573915,66468.0,66464.0,0.150456]
[1722412304136,0.28573915,66468.0,66463.0,0.243859]
[1722412304290,0.28573915,66468.0,66463.0,0.229859]
[1722412304767,0.28573915,66468.0,66463.0,0.242859]
[1722412304768,0.11268308,66464.0,66463.0,0.242859]
[1722412304975,0.11268308,66464.0,66463.0,0.342859]
[1722412305196,0.11268308,66464.0,66463.0,0.343772]
[1722412307250,0.11268308,66464.0,66463.0,0.330772]
[1722412307405,0.11268308,66464.0,66463.0,0.344772]
[1722412307608,0.26314008,66464.0,66463.0,0.114913]
[1722412307807,0.451371,66464.0,66463.0,0.114913]
[1722412308219,0.451371,66464.0,66463.0,0.126913]
[1722412308999,0.451371,66464.0,66463.0,0.026913]
[1722412309452,0.150457,66464.0,66463.0,0.026913]
[1722412309969,0.150457,66464.0,66463.0,0.014913]
[1722412310624,0.150457,66464.0,66463.0,0.028913]
[1722412316509,0.18949378,66464.0,66463.0,0.028913]
[1722412317058,0.18949381,66464.0,66463.0,0.028913]
[1722412317358,0.03903681,66464.0,66463.0,0.028913]
[1722412317823,0.18949381,66464.0,66463.0,0.028913]
[1722412319428,0.03903681,66464.0,66463.0,0.028913]
[1722412320013,0.150455,66465.0,66463.0,0.028913]
[1722412320215,0.03841301,66464.0,66463.0,0.028913]
[1722412321002,0.03841301,66464.0,66463.0,0.014913]
[1722412321435,0.03841301,66464.0,66463.0,0.028913]
[1722412321646,0.1736383,66464.0,66463.0,0.028913]
[1722412322667,0.1736383,66464.0,66463.0,0.014913]
[1722412323096,0.1736383,66464.0,66463.0,0.028913]
[1722412323499,0.1736383,66464.0,66463.0,0.12994145]
[1722412323500,0.17373262,66464.0,66463.0,0.12994145]
[1722412323744,0.17373262,66464.0,66463.0,0.128913]
[1722412323945,0.03846622,66464.0,66463.0,0.128913]
[1722412324093,0.03846622,66464.0,66463.0,0.279372]
[1722412324273,0.03846622,66464.0,66463.0,0.128913]
[1722412324618,0.03846622,66464.0,66463.0,0.1304672]
[1722412324832,0.03846622,66464.0,66463.0,0.128913]
[1722412324990,0.03846622,66464.0,66463.0,0.210913]
[1722412325443,0.03846622,66464.0,66463.0,0.361372]
[1722412325847,0.03846622,66464.0,66463.0,1.02321]
[1722412326267,0.1352664,66467.0,66466.0,0.082]
[1722412326453,0.0392606,66467.0,66466.0,0.232452]
[1722412326756,0.0653,66474.0,66466.0,0.232452]
[1722412326966,0.0653,66474.0,66467.0,0.1520042]
[1722412326967,0.13525813,66468.0,66467.0,0.1520042]
[1722412327164,0.17451927,66468.0,66467.0,0.15045]
[1722412328604,0.03926114,66468.0,66467.0,0.15045]
[1722412328819,0.150439,66472.0,66467.0,0.16345]
[1722412328820,0.03926114,66471.0,66467.0,0.16345]
[1722412329013,0.03926114,66470.0,66467.0,0.16345]
[1722412329255,0.150439,66472.0,66467.0,0.16345]
[1722412329256,0.03926114,66469.0,66467.0,0.16345]
[1722412329460,0.150439,66472.0,66468.0,0.00096444]
[1722412329606,0.03932838,66471.0,66467.0,0.17545]
[1722412329815,0.03932838,66471.0,66467.0,0.16345]
[1722412330060,0.03932838,66471.0,66468.0,0.00100552]
[1722412330214,0.03932838,66470.0,66468.0,0.00100552]
[1722412330420,0.03932838,66469.0,66467.0,0.17245]
[1722412330650,0.03932838,66468.0,66467.0,0.17245]
[1722412330856,0.03932838,66471.0,66467.0,0.17245]
[1722412331061,0.03932838,66470.0,66467.0,0.009]
[1722412331422,0.03932838,66470.0,66467.0,0.021]
[1722412331626,0.03932838,66470.0,66467.0,0.009]
[1722412331970,0.03932838,66470.0,66467.0,0.018]
[1722412332373,0.03932838,66470.0,66466.0,0.232451]
[1722412332528,0.03932838,66470.0,66468.0,0.01]
[1722412333110,0.03932838,66470.0,66467.0,0.011]
[1722412333111,0.18977338,66470.0,66467.0,0.011]
[1722412333318,0.03932838,66469.0,66467.0,0.011]
[1722412333523,0.150445,66470.0,66468.0,0.0015542]
[1722412333731,0.03890084,66469.0,66467.0,0.021]
[1722412334177,0.361801,66467.0,66463.0,0.100913]
[1722412334366,0.150456,66465.0,66464.0,0.0015542]
[1722412334520,0.03890084,66465.0,66464.0,0.0015542]
[1722412334718,0.03890084,66465.0,66463.0,0.000913]
[1722412334923,0.03890084,66464.0,66463.0,0.0024672]
[1722412335127,0.03890084,66464.0,66463.0,0.000913]
[1722412335981,0.03890084,66464.0,66463.0,0.00230292]
[1722412336761,0.03835627,66464.0,66463.0,0.000913]
[1722412337416,0.03835627,66464.0,66463.0,0.014913]
[1722412337623,0.03835627,66464.0,66463.0,0.028913]
[1722412337745,0.03835627,66464.0,66463.0,0.128913]
[1722412338741,0.19075255,66464.0,66463.0,0.128913]
[1722412339476,0.03835627,66464.0,66463.0,0.128913]
[1722412340076,0.03837725,66464.0,66463.0,0.128913]
[1722412342599,0.03837725,66465.0,66463.0,0.128913]
[1722412343016,0.18883225,66465.0,66463.0,0.128913]
[1722412343205,0.03837725,66464.0,66463.0,0.128913]
[1722412343418,0.0383638,66464.0,66463.0,0.114913]
[1722412343625,0.0383638,66464.0,66463.0,0.028913]
[1722412343806,0.0383638,66464.0,66463.0,0.128913]
[1722412344011,0.0383638,66464.0,66463.0,0.114913]
[1722412344211,0.0383638,66464.0,66463.0,0.128913]
[1722412344624,0.0383638,66464.0,66463.0,0.114913]
[1722412344902,0.0383638,66464.0,66463.0,0.014913]
[1722412345067,0.0383638,66464.0,66463.0,0.03043084]
[1722412345220,0.0383638,66464.0,66463.0,0.114913]
[1722412345634,0.0383638,66464.0,66463.0,0.128913]
[1722412346862,0.03830543,66464.0,66463.0,0.128913]
[1722412349343,0.18876243,66464.0,66463.0,0.1304672]
[1722412349693,0.03830543,66464.0,66463.0,0.1304672]
[1722412349867,0.18876243,66464.0,66463.0,0.128913]
[1722412350078,0.300904,66467.0,66463.0,0.128913]
[1722412350079,0.150455,66465.0,66463.0,0.128913]
[1722412350283,0.03831449,66464.0,66463.0,0.128913]
[1722412351305,0.03831449,66464.0,66463.0,0.114913]
[1722412351503,0.03831449,66464.0,66463.0,0.014913]
[1722412351721,0.03831449,66464.0,66463.0,0.028913]
[1722412351951,0.03831449,66464.0,66463.0,0.128913]
[1722412352170,0.03831449,66464.0,66463.0,0.114913]
[1722412352399,0.03831449,66464.0,66463.0,0.128913]
[1722412352616,0.0377424,66464.0,66463.0,0.128913]
[1722412353488,0.03774203,66464.0,66463.0,0.128913]
[1722412353718,0.03772282,66466.0,66463.0,0.1304672]
[1722412353926,0.03772282,66465.0,66463.0,0.128913]
[1722412354135,0.150453,66466.0,66464.0,0.0015542]
[1722412354345,0.03772282,66465.0,66463.0,0.128913]
[1722412354548,0.03772282,66465.0,66464.0,0.00116118]
[1722412354757,0.03772282,66465.0,66463.0,0.128913]
[1722412354925,0.03772282,66465.0,66463.0,0.100913]
[1722412355129,0.03772282,66465.0,66463.0,0.014913]
[1722412355335,0.03772282,66465.0,66463.0,0.028913]
[1722412355548,0.03772282,66465.0,66463.0,0.114913]
[1722412355802,0.03772282,66465.0,66464.0,0.014]
[1722412356871,0.03772514,66465.0,66464.0,0.014]
[1722412357937,0.03772514,66465.0,66463.0,0.0024672]
[1722412358126,0.03772514,66465.0,66463.0,0.000913]
[1722412358314,0.03772514,66465.0,66464.0,0.014]
[1722412358928,0.03772514,66467.0,66464.0,0.01501985]
[1722412359188,0.03772514,66466.0,66464.0,0.01501985]
[1722412359388,0.03772514,66466.0,66464.0,0.014]
[1722412359849,0.03772514,66466.0,66463.0,0.100913]
[1722412359991,0.03816932,66465.0,66464.0,0.01547449]
[1722412360188,0.03816932,66465.0,66464.0,0.014]
[1722412360416,0.03816932,66466.0,66464.0,0.0155542]
[1722412360781,0.03816932,66465.0,66464.0,0.0155542]
[1722412361154,0.03816932,66466.0,66464.0,0.014]
[1722412361372,0.03816932,66465.0,66464.0,0.028]
[1722412361536,0.03816932,66466.0,66464.0,0.028]
[1722412361748,0.151278,66468.0,66465.0,0.00085864]
[1722412361953,0.03836468,66467.0,66464.0,0.028]
[1722412362152,0.18881568,66467.0,66464.0,0.028]
[1722412362357,0.03836468,66466.0,66464.0,0.042]
[1722412362751,0.03836468,66466.0,66464.0,0.028]
[1722412363223,0.03836468,66466.0,66464.0,0.055]
[1722412363399,0.150451,66467.0,66464.0,0.055]
[1722412363578,0.03874804,66466.0,66464.0,0.042]
[1722412363981,0.03874804,66466.0,66464.0,0.056]
[1722412364183,0.18920104,66466.0,66464.0,0.056]
[1722412364408,0.18920304,66465.0,66464.0,0.056]
[1722412364830,0.18920304,66465.0,66464.0,0.0155542]
[1722412365005,0.03874804,66465.0,66464.0,0.0295542]
[1722412365209,0.03874804,66465.0,66464.0,0.028]
[1722412365413,0.03874804,66465.0,66464.0,0.014]
[1722412365813,0.03874804,66465.0,66464.0,0.0295542]
[1722412366194,1.37586608,66465.0,66464.0,0.0295542]
[1722412366494,1.44895991,66465.0,66464.0,0.028]
[1722412366735,0.01,66464.0,66463.0,0.000913]
[1722412366877,0.01,66464.0,66456.0,0.000913]